bitfinex-derivatives/quotes_BTCF0:USTF0_20240815
["timestamp","ask_amount","ask_price","bid_price","bid_amount"]
[1723737371111,0.05013793,59759.0,59758.0,0.32089101]
[1723737371317,0.05013793,59760.0,59759.0,0.083665]
[1723737371513,0.05013793,59760.0,59759.0,0.297465]
[1723737372308,0.05013793,59761.0,59760.0,0.083664]
[1723737372508,0.05013793,59761.0,59760.0,0.548564]
[1723737373616,0.05013793,59761.0,59760.0,0.633228]
[1723737374118,0.05013793,59761.0,59760.0,0.634228]
[1723737374321,0.0668574,59765.0,59761.0,0.083662]
[1723737374322,0.05013793,59762.0,59761.0,0.083662]
[1723737374514,0.05013793,59762.0,59761.0,0.187762]
[1723737374714,0.0668574,59765.0,59764.0,0.083658]
[1723737375022,0.0668574,59765.0,59764.0,0.187758]
[1723737376312,0.0668574,59766.0,59765.0,0.083657]
[1723737377311,0.0868574,59766.0,59765.0,0.083657]
[1723737377615,0.0868574,59766.0,59765.0,0.084657]
[1723737378016,0.0868574,59766.0,59765.0,0.085657]
[1723737378213,0.02,59766.0,59765.0,0.085657]
[1723737380621,0.05004416,59766.0,59765.0,0.085657]
[1723737380827,0.05004416,59767.0,59766.0,0.083655]
[1723737381126,0.29004416,59767.0,59766.0,0.187755]
[1723737382018,0.24,59767.0,59766.0,0.187755]
[1723737382419,0.0668574,59770.0,59769.0,0.083651]
[1723737382625,0.05002772,59774.0,59769.0,0.4649]
[1723737382923,0.0668574,59777.0,59775.0,0.083643]
[1723737382924,0.05002772,59777.0,59775.0,0.083643]
[1723737383127,0.05002549,59777.0,59776.0,0.4649]
[1723737383422,0.05002549,59779.0,59778.0,0.083638]
[1723737383616,0.05002549,59779.0,59778.0,0.187738]
[1723737383820,0.06002549,59779.0,59778.0,0.187738]
[1723737384026,0.05002549,59779.0,59778.0,0.187738]
[1723737384220,0.05002549,59780.0,59779.0,0.083637]
[1723737384522,0.04998235,59781.0,59779.0,0.187737]
[1723737384718,0.04998235,59781.0,59780.0,0.083636]
[1723737384915,0.16408235,59781.0,59776.0,0.3618]
[1723737385227,0.167286,59775.0,59774.0,0.00025093]
[1723737385419,0.858086,59775.0,59774.0,0.00025093]
[1723737386127,0.774443,59775.0,59774.0,0.00025093]
[1723737386329,0.84109387,59775.0,59774.0,0.00025093]
[1723737386628,0.78582305,59775.0,59774.0,0.00025093]
[1723737386835,0.85247183,59775.0,59774.0,0.00025093]
[1723737387227,0.78582305,59775.0,59774.0,0.00125093]
[1723737387625,0.78582305,59775.0,59774.0,0.00225093]
[1723737387828,0.08365,59770.0,59769.0,0.01132619]
[1723737388028,0.34,59770.0,59767.0,0.083653]
[1723737388223,0.15729119,59769.0,59768.0,0.083652]
[1723737388418,0.36729119,59769.0,59768.0,0.083652]
[1723737389130,0.083652,59768.0,59767.0,0.01162455]
[1723737389333,0.083655,59767.0,59766.0,0.083655]
[1723737389525,0.16365177,59767.0,59766.0,0.083655]
[1723737389828,0.113655,59767.0,59766.0,0.083655]
[1723737390222,0.03,59767.0,59766.0,0.083655]
[1723737390419,0.42745367,59770.0,59769.0,0.083651]
[1723737390420,0.08365,59770.0,59769.0,0.083651]
[1723737390626,0.01,59770.0,59769.0,0.083651]
[1723737391737,0.01,59770.0,59769.0,0.167302]
[1723737391938,0.01,59770.0,59769.0,0.290951]
[1723737392239,0.013,59770.0,59769.0,0.290151]
[1723737393336,0.014,59770.0,59769.0,0.30268534]
[1723737393640,0.014,59770.0,59769.0,0.21983434]
[1723737393641,0.011,59770.0,59769.0,0.21983434]
[1723737393937,0.06300939,59770.0,59769.0,0.11783434]
[1723737394339,0.09665,59770.0,59769.0,0.01353434]
[1723737394633,0.14669931,59770.0,59769.0,0.01353434]
[1723737394835,0.013,59770.0,59769.0,0.01353434]
[1723737395039,0.06305146,59770.0,59769.0,0.09718534]
[1723737395335,0.013,59770.0,59769.0,0.09718534]
[1723737395731,0.1803,59770.0,59769.0,0.01353434]
[1723737395931,0.24695367,59770.0,59769.0,0.01353434]
[1723737396130,0.33060367,59770.0,59769.0,0.01353434]
[1723737396330,0.167316,59764.0,59763.0,0.00025093]
[1723737396642,0.48408914,59764.0,59763.0,0.01190384]
[1723737396837,0.48408914,59764.0,59763.0,0.00025093]
[1723737397041,0.16043114,59764.0,59763.0,0.00025093]
[1723737397225,0.15043114,59764.0,59763.0,0.00025093]
[1723737397533,0.083658,59764.0,59763.0,0.00025093]
[1723737397844,0.303658,59764.0,59763.0,0.00025093]
[1723737398438,0.372448,59764.0,59763.0,0.01264208]
[1723737398827,0.305658,59764.0,59763.0,0.01264208]
[1723737399028,0.087658,59764.0,59763.0,0.01264208]
[1723737399336,0.087658,59764.0,59763.0,0.37344208]
[1723737399531,0.004,59764.0,59763.0,0.37344208]
[1723737400940,0.004,59764.0,59763.0,0.45710108]
[1723737401238,0.30079214,59764.0,59763.0,0.45710108]
[1723737402244,0.234,59764.0,59763.0,0.45710108]
[1723737402444,0.30079214,59764.0,59763.0,0.45710108]
[1723737402640,0.30079214,59764.0,59763.0,0.37344208]
[1723737402849,0.38445014,59764.0,59763.0,0.37344208]
[1723737405643,0.38445014,59764.0,59763.0,0.45710108]
[1723737405644,0.30026214,59764.0,59763.0,0.45710108]
[1723737406649,0.38392014,59764.0,59763.0,0.37344208]
[1723737406946,0.317128,59764.0,59763.0,0.37344208]
[1723737408937,0.457128,59764.0,59763.0,0.37344208]
[1723737409263,0.52393426,59764.0,59763.0,0.37344208]
[1723737409750,0.457128,59764.0,59763.0,0.37344208]
[1723737410437,0.52393262,59764.0,59763.0,0.37344208]
[1723737411850,0.44027462,59764.0,59763.0,0.45710108]
[1723737412351,0.07027462,59764.0,59763.0,0.45710108]
[1723737412650,0.32027462,59764.0,59763.0,0.45710108]
[1723737412854,0.25347,59764.0,59763.0,0.45710108]
[1723737413241,0.32027462,59764.0,59763.0,0.45710108]
[1723737413439,0.25347,59764.0,59763.0,0.45710108]
[1723737415251,0.32027462,59764.0,59763.0,0.45710108]
[1723737418753,0.25347,59764.0,59763.0,0.45710108]
[1723737420149,0.32027462,59764.0,59763.0,0.45710108]
[1723737420348,0.32027462,59764.0,59763.0,0.54076008]
[1723737420653,0.32027462,59764.0,59763.0,0.45710108]
[1723737420654,0.25347,59764.0,59763.0,0.45710108]
[1723737421658,0.25347,59764.0,59763.0,0.54076008]
[1723737421852,0.25347,59764.0,59763.0,0.45710108]
[1723737422339,0.32027462,59764.0,59763.0,0.50656009]
[1723737423041,0.32027462,59764.0,59763.0,0.45710108]
[1723737423242,0.32027462,59764.0,59763.0,0.50656009]
[1723737424354,0.25347,59764.0,59763.0,0.50656009]
[1723737424746,0.25347,59764.0,59763.0,0.37344208]
[1723737424944,0.25347,59764.0,59763.0,0.45710108]
[1723737425351,0.25347,59764.0,59763.0,0.50656009]
[1723737425660,0.337128,59764.0,59763.0,0.42290109]
[1723737427150,0.25347,59764.0,59763.0,0.42290109]
[1723737427355,0.25347,59764.0,59763.0,0.45710108]
[1723737428448,0.00347,59764.0,59763.0,0.45710108]
[1723737430255,0.23347,59764.0,59763.0,0.45710108]
[1723737432363,0.23347,59764.0,59761.0,0.00115755]
[1723737432656,0.06690811,59763.0,59761.0,0.00115755]
[1723737432862,0.06690811,59762.0,59761.0,0.083661]
[1723737433961,0.06690811,59762.0,59761.0,0.187761]
[1723737434262,0.06990811,59762.0,59761.0,0.187761]
[1723737434458,0.06990811,59762.0,59761.0,0.083661]
[1723737434657,0.06990811,59762.0,59761.0,0.187761]
[1723737435348,0.003,59762.0,59761.0,0.187761]
[1723737436362,0.013,59762.0,59761.0,0.187761]
[1723737436557,0.003,59762.0,59761.0,0.187761]
[1723737436950,0.06990811,59762.0,59761.0,0.187761]
[1723737437151,0.003,59762.0,59761.0,0.187761]
[1723737437352,0.083658,59765.0,59761.0,0.1041]
[1723737437555,0.083658,59764.0,59763.0,0.04950532]
[1723737437750,0.35,59764.0,59763.0,0.04950532]
[1723737437959,0.35,59764.0,59763.0,0.13316432]
[1723737438847,0.354,59764.0,59763.0,0.13416432]
[1723737439152,0.354,59764.0,59763.0,0.084659]
[1723737439861,0.356,59764.0,59763.0,0.084659]
[1723737440661,0.006,59764.0,59763.0,0.084659]
[1723737440855,0.006,59764.0,59763.0,0.168318]
[1723737441053,0.00122144,59764.0,59763.0,0.168318]
[1723737441257,0.08364374,59767.0,59766.0,0.083655]
[1723737441463,0.08364374,59767.0,59766.0,0.187755]
[1723737441464,0.09364374,59767.0,59766.0,0.187755]
[1723737441963,0.44444374,59768.0,59767.0,0.083654]
[1723737442268,0.3608,59768.0,59767.0,0.1331758]
[1723737442464,0.167316,59764.0,59763.0,0.001]
[1723737442758,0.51141332,59764.0,59763.0,0.001]
[1723737442949,0.4548756,59764.0,59763.0,0.001]
[1723737443457,0.427758,59764.0,59763.0,0.001]
[1723737443754,0.45487549,59764.0,59763.0,0.01269192]
[1723737443958,0.45487549,59764.0,59761.0,0.04953589]
[1723737444159,0.3608,59762.0,59761.0,0.1041]
[1723737444358,0.714461,59762.0,59761.0,0.1041]
[1723737444555,0.714461,59762.0,59761.0,0.10463]
[1723737445458,0.714461,59762.0,59761.0,0.15414512]
[1723737445864,0.714461,59762.0,59761.0,0.15514512]
[1723737449648,0.6308,59762.0,59761.0,0.15514512]
[1723737449857,0.6308,59762.0,59761.0,0.23880712]
[1723737450147,0.44444558,59767.0,59761.0,0.10563]
[1723737450352,0.76444558,59767.0,59766.0,0.187755]
[1723737450561,0.32,59767.0,59766.0,0.187755]
[1723737450952,0.08364558,59769.0,59768.0,0.083653]
[1723737451163,0.39,59769.0,59768.0,0.083653]
[1723737451762,0.47364558,59769.0,59768.0,0.083653]
[1723737452165,0.47364558,59769.0,59768.0,0.084653]
[1723737452365,0.39,59769.0,59768.0,0.084653]
[1723737452571,0.4941,59769.0,59768.0,0.084653]
[1723737454153,0.577751,59769.0,59768.0,0.002]
[1723737454353,0.66139658,59769.0,59768.0,0.002]
[1723737454556,0.60486671,59769.0,59768.0,0.002]
[1723737455470,0.577751,59769.0,59768.0,0.002]
[1723737455867,0.473651,59769.0,59768.0,0.002]
[1723737456069,0.473651,59769.0,59768.0,0.09713636]
[1723737456370,0.473651,59769.0,59768.0,0.085653]
[1723737456960,0.975571,59769.0,59768.0,0.002]
[1723737457167,1.0026869,59769.0,59768.0,0.002]
[1723737459268,1.0863379,59769.0,59768.0,0.002]
[1723737459570,1.4863379,59769.0,59768.0,0.002]
[1723737460763,1.4863379,59769.0,59768.0,0.01364524]
[1723737461563,1.48633815,59769.0,59768.0,0.01364524]
[1723737463357,1.08633815,59769.0,59768.0,0.01364524]
[1723737464073,1.00268715,59769.0,59768.0,0.01364524]
[1723737464469,0.50076715,59769.0,59768.0,0.01364524]
[1723737466267,0.50076687,59769.0,59768.0,0.01364524]
[1723737467563,0.50076687,59769.0,59768.0,0.09729824]
[1723737468477,0.41711587,59769.0,59768.0,0.09729824]
[1723737468667,0.50076687,59769.0,59768.0,0.09729824]
[1723737471172,0.41711587,59769.0,59768.0,0.09729824]
[1723737471373,0.41711587,59769.0,59768.0,0.18095124]
[1723737471879,0.39,59769.0,59768.0,0.26460424]
[1723737472779,0.39,59769.0,59768.0,0.18095124]
[1723737472969,0.47360462,59769.0,59768.0,0.09729824]
[1723737473169,0.39,59769.0,59768.0,0.09729824]
[1723737473375,0.47360403,59769.0,59768.0,0.09729824]
[1723737477880,0.57770403,59769.0,59768.0,0.09729824]
[1723737478286,0.47360403,59769.0,59768.0,0.09729824]
[1723737478789,0.57770403,59769.0,59768.0,0.09729824]
[1723737479283,0.66135503,59769.0,59768.0,0.01364524]
[1723737480081,0.68851719,59769.0,59768.0,0.01364524]
[1723737480485,0.083661,59762.0,59761.0,0.41028716]
[1723737480787,0.537761,59762.0,59761.0,0.3608]
[1723737481399,0.083662,59761.0,59760.0,0.04949476]
[1723737481576,0.083663,59761.0,59759.0,0.15359476]
[1723737481778,0.22,59761.0,59760.0,0.04949476]
[1723737482083,0.3241,59761.0,59760.0,0.04949476]
[1723737482386,0.407762,59761.0,59760.0,0.04949476]
[1723737482886,0.083664,59760.0,59759.0,0.06403482]
[1723737483083,0.433664,59760.0,59759.0,0.06403482]
[1723737483480,0.433664,59760.0,59759.0,0.01454006]
[1723737483685,0.433134,59760.0,59759.0,0.01454006]
[1723737483985,0.82105364,59760.0,59759.0,0.01454006]
[1723737484281,0.083668,59757.0,59756.0,0.00025093]
[1723737484486,0.60138029,59757.0,59756.0,0.00025093]
[1723737484687,0.60138029,59757.0,59748.0,0.5665]
[1723737484688,0.083676,59752.0,59749.0,0.04949476]
[1723737484875,0.1041,59751.0,59748.0,0.54692]
[1723737485083,0.327777,59751.0,59748.0,0.55755347]
[1723737485385,0.083678,59750.0,59748.0,0.47387347]
[1723737485585,0.05012788,59749.0,59748.0,0.47387347]
[1723737485786,0.33012788,59749.0,59748.0,0.47387347]
[1723737485982,0.363679,59749.0,59748.0,0.47387347]
[1723737486588,0.41379191,59749.0,59748.0,0.38627347]
[1723737487193,1.14292,59749.0,59743.0,0.00025093]
[1723737487379,0.083686,59744.0,59743.0,0.00025093]
[1723737487578,0.724486,59744.0,59743.0,0.00025093]
[1723737487983,0.6408,59744.0,59733.0,0.2999]
[1723737488185,0.05008929,59739.0,59733.0,0.2999]
[1723737488483,0.3608,59736.0,59734.0,0.0837]
[1723737488687,0.3608,59736.0,59733.0,0.2999]
[1723737488688,0.3908,59736.0,59733.0,0.01161393]
[1723737488878,0.3908,59736.0,59724.0,0.1942]
[1723737488879,0.083705,59731.0,59724.0,0.1942]
[1723737489082,0.05006262,59733.0,59728.0,0.3608]
[1723737489291,0.00025093,59733.0,59728.0,0.3608]
[1723737489488,0.05006262,59738.0,59735.0,0.083699]
[1723737489678,0.05006262,59738.0,59736.0,0.1942]
[1723737489887,0.01,59738.0,59736.0,0.1942]
[1723737490088,0.001,59744.0,59736.0,0.1942]
[1723737490283,0.281,59744.0,59736.0,0.1942]
[1723737490484,0.0837,59734.0,59733.0,0.014]
[1723737491086,0.0837,59734.0,59731.0,0.083704]
[1723737491689,0.13368274,59739.0,59729.0,0.1942]
[1723737491889,0.0847,59734.0,59733.0,0.014]
[1723737492394,0.083703,59732.0,59731.0,0.014]
[1723737492586,0.444503,59732.0,59731.0,0.014]
[1723737493083,0.558206,59732.0,59731.0,0.014]
[1723737493798,0.444503,59732.0,59731.0,0.014]
[1723737494286,0.444503,59732.0,59729.0,0.0112862]
[1723737494490,0.444503,59732.0,59728.0,0.00025093]
[1723737494888,0.664503,59732.0,59728.0,0.00025093]
[1723737495197,0.665503,59732.0,59731.0,0.025]
[1723737495691,0.001,59732.0,59731.0,0.025]
[1723737495897,0.001,59732.0,59730.0,0.083706]
[1723737496095,0.001,59732.0,59729.0,0.2032]
[1723737496288,0.084703,59732.0,59729.0,0.2032]
[1723737496488,0.083705,59731.0,59729.0,0.2032]
[1723737496994,0.001,59732.0,59729.0,0.2032]
[1723737497199,0.001,59732.0,59730.0,0.083705]
[1723737497795,0.001,59732.0,59729.0,0.2032]
[1723737497989,0.084704,59732.0,59731.0,0.014]
[1723737498390,0.123704,59732.0,59731.0,0.014]
[1723737498594,0.084704,59732.0,59731.0,0.014]
[1723737498794,0.314704,59732.0,59731.0,0.014]
[1723737498997,0.314704,59732.0,59729.0,0.2142]
[1723737499204,0.313704,59732.0,59730.0,0.014]
[1723737499500,0.313704,59732.0,59731.0,0.011]
[1723737499501,0.314704,59732.0,59731.0,0.011]
[1723737500189,0.001,59732.0,59731.0,0.094704]
[1723737500391,0.3608,59743.0,59731.0,0.094704]
[1723737500392,0.0983,59745.0,59731.0,0.455503]
[1723737500692,0.501985,59745.0,59741.0,0.083689]
[1723737500895,0.083687,59744.0,59741.0,0.083689]
[1723737501099,0.083687,59744.0,59732.0,0.1009]
[1723737501100,0.083691,59741.0,59732.0,0.1009]
[1723737501607,0.133691,59741.0,59738.0,0.083694]
[1723737501789,0.3608,59740.0,59738.0,0.083694]
[1723737501995,0.4008,59740.0,59739.0,0.083693]
[1723737503496,0.04,59740.0,59739.0,0.083693]
[1723737503696,0.04,59740.0,59739.0,0.095693]
[1723737503697,0.001,59740.0,59739.0,0.095693]
[1723737503906,0.011,59740.0,59739.0,0.095693]
[1723737504703,0.011,59740.0,59739.0,0.109693]
[1723737505398,0.094692,59740.0,59739.0,0.026]
[1723737506505,0.178384,59740.0,59739.0,0.04000875]
[1723737506799,0.094692,59740.0,59739.0,0.04000875]
[1723737510009,0.282584,59740.0,59739.0,0.04000875]
[1723737510203,0.33257274,59740.0,59739.0,0.04000875]
[1723737510593,0.24888074,59740.0,59739.0,0.04000875]
[1723737511211,0.33257274,59740.0,59739.0,0.04000875]
[1723737511407,0.24888074,59740.0,59739.0,0.04000875]
[1723737511605,0.282584,59740.0,59739.0,0.04000875]
[1723737512309,0.198892,59740.0,59739.0,0.04000875]
[1723737513005,0.282584,59740.0,59739.0,0.04000875]
[1723737513403,0.083703,59732.0,59728.0,0.00025093]
[1723737513602,0.187907,59729.0,59728.0,0.00025093]
[1723737513904,0.307907,59729.0,59728.0,0.00025093]
[1723737514301,0.35799112,59729.0,59728.0,0.00025093]
[1723737514503,0.307907,59729.0,59728.0,0.00025093]
[1723737514904,0.307907,59729.0,59728.0,0.01425907]
[1723737515108,0.307907,59729.0,59728.0,0.02925907]
[1723737515909,0.05011776,59731.0,59730.0,0.083706]
[1723737516108,0.08358262,59738.0,59730.0,0.083706]
[1723737516109,0.05011776,59733.0,59730.0,0.083706]
[1723737516406,0.05011776,59733.0,59732.0,0.548703]
[1723737516705,0.06677883,59740.0,59732.0,0.548703]
[1723737516903,0.06677883,59740.0,59738.0,0.1042]
[1723737517099,0.06677883,59739.0,59738.0,0.187894]
[1723737517996,0.06677883,59739.0,59738.0,0.083694]
[1723737518503,0.084692,59740.0,59738.0,0.083694]
[1723737518504,0.15147083,59740.0,59738.0,0.083694]
[1723737518695,0.06677883,59739.0,59738.0,0.083694]
[1723737518895,0.001,59739.0,59738.0,0.084694]
[1723737519308,0.001,59739.0,59738.0,0.445494]
[1723737519710,0.06777883,59740.0,59739.0,0.083693]
[1723737520410,0.001,59740.0,59739.0,0.083693]
[1723737520804,0.06777883,59740.0,59739.0,0.083693]
[1723737521710,0.083689,59743.0,59740.0,0.083691]
[1723737522032,0.093689,59743.0,59740.0,0.083691]
[1723737522403,0.093689,59743.0,59741.0,0.08369]
[1723737522808,0.094689,59743.0,59742.0,0.083689]
[1723737523013,0.095689,59743.0,59742.0,0.083689]
[1723737523414,0.00025093,59746.0,59745.0,0.083685]
[1723737523608,0.3608,59748.0,59747.0,0.083682]
[1723737523912,0.37102,59748.0,59747.0,0.083682]
[1723737524101,0.06213248,59748.0,59747.0,0.083682]
[1723737524912,0.083677,59751.0,59750.0,0.083678]
[1723737525219,0.06,59751.0,59750.0,0.083678]
[1723737526123,0.061,59751.0,59750.0,0.090678]
[1723737526423,0.062,59751.0,59750.0,0.093678]
[1723737527612,0.062,59751.0,59747.0,0.01444908]
[1723737527814,0.062,59751.0,59746.0,0.083683]
[1723737527815,0.083682,59747.0,59746.0,0.083683]
[1723737528015,0.453682,59747.0,59746.0,0.083683]
[1723737528413,0.453682,59747.0,59744.0,0.3608]
[1723737528414,0.16737,59745.0,59744.0,0.37540619]
[1723737528719,0.453685,59745.0,59744.0,0.01460619]
[1723737529020,0.453685,59745.0,59744.0,0.083686]
[1723737529214,0.37,59745.0,59744.0,0.083686]
[1723737529607,0.371,59745.0,59744.0,0.087686]
[1723737531613,0.372,59745.0,59744.0,0.092686]
[1723737536719,0.455685,59745.0,59744.0,0.092686]
[1723737538219,0.53937,59745.0,59744.0,0.009]
[1723737538623,1.125175,59745.0,59744.0,0.009]
[1723737540624,0.623055,59745.0,59744.0,0.009]
[1723737541015,0.53937,59745.0,59744.0,0.092686]
[1723737541821,0.53937,59745.0,59744.0,0.009]
[1723737545424,0.62295262,59745.0,59744.0,0.009]
[1723737546425,0.53937,59745.0,59744.0,0.009]
[1723737547528,0.56649696,59745.0,59744.0,0.009]
[1723737547722,0.45560554,59745.0,59744.0,0.092686]
[1723737548227,0.372,59745.0,59744.0,0.092686]
[1723737548518,0.372,59745.0,59744.0,0.537172]
[1723737548721,0.372,59745.0,59744.0,0.453486]
[1723737549321,0.372,59745.0,59744.0,0.5866585]
[1723737549322,0.002,59745.0,59744.0,0.5866585]
[1723737549626,0.002,59745.0,59744.0,0.635472]
[1723737549826,0.002,59745.0,59744.0,0.68495155]
[1723737550020,0.002,59745.0,59744.0,0.551786]
[1723737551029,0.012,59745.0,59744.0,0.551786]
[1723737551422,0.012,59745.0,59744.0,0.453486]
[1723737551820,0.042,59745.0,59744.0,0.453486]
[1723737553323,0.125685,59745.0,59744.0,0.3698]
[1723737553521,0.125685,59745.0,59738.0,0.3608]
[1723737553522,1.59244767,59745.0,59725.0,0.06597207]
[1723737553820,1.59244767,59745.0,59721.0,0.08271565]
[1723737553821,0.083713,59725.0,59721.0,0.06597207]
[1723737554029,0.083714,59724.0,59723.0,0.04952904]
[1723737554221,0.083717,59722.0,59721.0,0.01436469]
[1723737554429,0.083717,59722.0,59719.0,0.14728972]
[1723737554430,0.02,59722.0,59719.0,0.14728972]
[1723737554631,0.02,59722.0,59719.0,0.0978]
[1723737555027,0.08372,59720.0,59719.0,0.11406864]
[1723737556636,0.08472,59720.0,59719.0,0.11406864]
[1723737557341,0.001,59720.0,59719.0,0.11406864]
[1723737557633,0.3608,59726.0,59719.0,0.62342864]
[1723737557839,0.3608,59733.0,59724.0,0.2604]
[1723737558137,0.4308,59733.0,59724.0,0.2604]
[1723737558328,0.4308,59733.0,59726.0,0.083711]
[1723737558938,0.083707,59730.0,59726.0,0.083711]
[1723737559234,0.183707,59730.0,59727.0,0.08371]
[1723737560525,0.3608,59728.0,59727.0,0.08371]
[1723737560735,0.4508,59728.0,59727.0,0.08371]
[1723737560933,0.08371,59727.0,59726.0,0.007]
[1723737561134,0.33371,59727.0,59726.0,0.007]
[1723737561530,0.083717,59723.0,59719.0,0.181521]
[1723737561925,0.44551,59728.0,59719.0,0.181521]
[1723737562126,0.083718,59722.0,59719.0,0.0978]
[1723737562436,0.083718,59722.0,59719.0,0.11447549]
[1723737562930,0.083718,59722.0,59719.0,0.12247549]
[1723737563137,0.083719,59721.0,59719.0,0.12247549]
[1723737563440,0.08372,59720.0,59719.0,0.12300549]
[1723737563830,0.09372,59720.0,59719.0,0.12300549]
[1723737564252,0.083718,59722.0,59719.0,0.20672649]
[1723737564538,0.084718,59722.0,59719.0,0.20672649]
[1723737564740,0.085718,59722.0,59719.0,0.20572649]
[1723737564939,0.083719,59721.0,59719.0,0.20572649]
[1723737565147,0.001,59720.0,59719.0,0.20572649]
[1723737565334,0.08572,59720.0,59719.0,0.12200549]
[1723737565641,0.09572,59720.0,59719.0,0.12200549]
[1723737565842,0.09372,59720.0,59719.0,0.11500549]
[1723737566041,0.09372,59720.0,59719.0,0.12200549]
[1723737566341,0.08372,59720.0,59719.0,0.12200549]
[1723737566535,0.08472,59720.0,59719.0,0.12200549]
[1723737567435,0.11472,59720.0,59719.0,0.20572649]
[1723737567636,0.11572,59720.0,59719.0,0.20572649]
[1723737568031,0.08572,59720.0,59719.0,0.20572649]
[1723737568235,0.08472,59720.0,59719.0,0.20572649]
[1723737568435,0.08572,59720.0,59719.0,0.20572649]
[1723737568639,0.08572,59720.0,59719.0,0.02420549]
[1723737568845,0.10572,59720.0,59719.0,0.02420549]
[1723737569044,0.08572,59720.0,59719.0,0.02420549]
[1723737569345,0.11572,59720.0,59719.0,0.02420549]
[1723737569539,0.19944,59720.0,59719.0,0.02420549]
[1723737569735,0.56024,59720.0,59719.0,0.02420549]
[1723737571036,0.44652,59720.0,59719.0,0.02420549]
[1723737571241,0.012,59720.0,59719.0,0.10792649]
[1723737571645,0.09572,59720.0,59719.0,0.02420549]
[1723737571851,0.08572,59720.0,59719.0,0.02420549]
[1723737572042,0.28572,59720.0,59719.0,0.02420549]
[1723737572259,0.30572,59720.0,59719.0,0.02420549]
[1723737572842,0.30572,59720.0,59719.0,0.02320549]
[1723737573351,0.66652,59720.0,59719.0,0.02320549]
[1723737573742,0.083721,59719.0,59716.0,0.00025116]
[1723737573950,0.363721,59719.0,59716.0,0.00025116]
[1723737574150,0.083724,59717.0,59716.0,0.00025116]
[1723737574346,0.093724,59717.0,59716.0,0.00025116]
[1723737574539,0.177448,59717.0,59716.0,0.00025116]
[1723737575353,0.177448,59717.0,59716.0,0.00125116]
[1723737575960,0.178448,59717.0,59716.0,0.00125116]
[1723737577356,0.179448,59717.0,59716.0,0.00125116]
[1723737578441,0.002,59717.0,59716.0,0.00125116]
[1723737578648,0.002,59717.0,59716.0,0.08497716]
[1723737582650,0.002,59717.0,59716.0,0.18717716]
[1723737584051,0.022,59717.0,59716.0,0.08497716]
[1723737584445,0.105724,59717.0,59716.0,0.08497716]
[1723737585847,0.105724,59717.0,59716.0,0.00125116]
[1723737586054,0.17245149,59717.0,59716.0,0.00125116]
[1723737586468,0.25617549,59717.0,59716.0,0.00125116]
[1723737588970,0.17245149,59717.0,59716.0,0.00125116]
[1723737589465,0.105724,59717.0,59716.0,0.00125116]
[1723737590462,0.105724,59717.0,59716.0,0.08497716]
[1723737590664,0.17257712,59717.0,59716.0,0.08497716]
[1723737591369,0.105724,59717.0,59716.0,0.08497716]
[1723737592160,0.105724,59717.0,59716.0,0.00125116]
[1723737593577,0.105724,59717.0,59716.0,0.08497616]
[1723737594165,0.105724,59717.0,59716.0,0.00125116]
[1723737594554,0.189448,59717.0,59716.0,0.00125116]
[1723737598373,0.189448,59717.0,59716.0,0.05088183]
[1723737600793,0.189448,59717.0,59704.0,0.54411565]
[1723737600794,0.222,59717.0,59704.0,0.4614]
[1723737601081,0.222,59717.0,59708.0,0.04714166]
[1723737601082,0.06694843,59709.0,59708.0,0.04714166]
[1723737601478,0.51068343,59709.0,59708.0,0.04714166]
[1723737601870,0.51085559,59709.0,59708.0,0.04714166]
[1723737602063,0.51085559,59709.0,59708.0,0.13087866]
[1723737603070,0.06712059,59709.0,59708.0,0.04714166]
[1723737603470,0.00017216,59709.0,59705.0,0.06618888]
[1723737603871,0.3608,59711.0,59710.0,0.167468]
[1723737604171,0.04470554,59712.0,59711.0,0.167466]
[1723737604375,0.2,59720.0,59719.0,0.167442]
[1723737604567,0.09706656,59720.0,59719.0,0.611963]
[1723737604763,0.13389687,59728.0,59721.0,0.167436]
[1723737604963,4.3e-07,59724.0,59723.0,0.251148]
[1723737605273,0.3608,59727.0,59726.0,0.083711]
[1723737605678,0.3608,59733.0,59726.0,0.0166467]
[1723737605878,0.08372,59720.0,59718.0,0.3608]
[1723737606073,0.083716,59723.0,59718.0,0.3608]
[1723737606380,0.3608,59727.0,59718.0,0.3608]
[1723737606381,0.001,59724.0,59718.0,0.3608]
[1723737606579,0.001,59724.0,59723.0,0.083716]
[1723737606781,0.3608,59733.0,59731.0,0.083704]
[1723737606971,0.3608,59733.0,59719.0,0.083721]
[1723737607166,0.06685033,59731.0,59722.0,0.06603465]
[1723737607478,0.06685033,59731.0,59723.0,0.3608]
[1723737607875,0.084714,59724.0,59722.0,0.06603465]
[1723737608076,0.001,59724.0,59722.0,0.06603465]
[1723737608275,0.083716,59723.0,59722.0,0.06603465]
[1723737608478,0.001,59724.0,59722.0,0.06603465]
[1723737608985,0.083716,59723.0,59722.0,0.06603465]
[1723737609181,0.083716,59723.0,59722.0,0.06703465]
[1723737609777,0.002,59724.0,59722.0,0.06703465]
[1723737609983,0.001,59724.0,59723.0,0.093716]
[1723737610683,0.001,59724.0,59722.0,0.06703465]
[1723737610684,0.084716,59723.0,59722.0,0.07703465]
[1723737610879,0.168432,59723.0,59722.0,0.07703465]
[1723737611078,0.671752,59723.0,59722.0,0.07803465]
[1723737611480,0.670752,59723.0,59722.0,0.06803465]
[1723737611678,0.669752,59723.0,59722.0,0.06603465]
[1723737611981,1.030552,59723.0,59722.0,0.06603465]
[1723737612373,1.030552,59723.0,59721.0,0.00025116]
[1723737612374,0.083717,59722.0,59721.0,0.00025116]
[1723737612678,0.947836,59723.0,59721.0,0.00025116]
[1723737612679,0.3618,59723.0,59721.0,0.00025116]
[1723737612889,0.3618,59723.0,59722.0,0.083717]
[1723737613270,0.001,59723.0,59722.0,0.083717]
[1723737613673,0.002,59723.0,59722.0,0.093717]
[1723737613874,0.002,59723.0,59722.0,1.040554]